bitfinex-derivatives/quotes_SOLF0:USTF0_20241206
["timestamp","ask_amount","ask_price","bid_price","bid_amount"]
[1733474054134,5.77432477,240.06,240.01,3.33]
[1733474055930,2.5364,240.12,240.01,3.33]
[1733474056237,5.77432477,240.1,240.01,3.33]
[1733474057731,5.77432477,240.1,240.01,7.59544693]
[1733474057935,5.77432477,240.1,240.01,3.33]
[1733474058337,5.77432477,240.08,240.01,3.33]
[1733474058635,5.77432477,240.08,240.01,7.4846561]
[1733474060733,5.77432477,240.08,240.01,3.33]
[1733474062541,5.77432477,240.06,240.01,3.33]
[1733474065042,5.77432477,240.06,240.01,6.66]
[1733474065844,2.02,240.09,240.02,4.07811231]
[1733474066044,5.77432477,240.07,240.02,4.07811231]
[1733474066645,5.77432477,240.07,240.03,4.86]
[1733474067141,5.77432477,240.05,240.03,4.86]
[1733474067737,2.02,240.09,240.03,4.86]
[1733474067944,5.77432477,240.06,240.03,4.86]
[1733474068145,5.77432477,240.04,240.03,4.86]
[1733474070744,2.02,240.09,240.03,4.86]
[1733474070942,2.02,240.09,240.03,10.63432477]
[1733474071448,5.77432477,240.1,240.03,10.63432477]
[1733474071746,2.02,240.12,240.05,5.77432477]
[1733474072142,5.77432477,240.13,240.05,5.77432477]
[1733474072547,5.77432477,240.16,240.07,5.77432477]
[1733474072749,5.77432477,240.18,240.09,5.77432477]
[1733474073551,5.77432477,240.18,240.1,4.24517166]
[1733474074051,2.02,240.19,240.1,4.24517166]
[1733474074052,5.77432477,240.17,240.1,4.24517166]
[1733474076951,5.77432477,240.15,240.1,4.24517166]
[1733474077152,5.77432477,240.15,240.07,5.77432477]
[1733474077552,5.77432477,240.15,240.07,9.10432477]
[1733474077749,5.77432477,240.13,240.07,3.33]
[1733474077955,5.77432477,240.11,240.07,3.33]
[1733474080254,5.77432477,240.09,240.07,3.33]
[1733474081958,7.77432477,240.09,240.07,3.33]
[1733474082661,7.77432477,240.09,240.04,2.0]
[1733474082861,5.77432477,240.05,240.04,2.0]
[1733474083759,5.77432477,240.05,240.04,5.33]
[1733474083952,5.77432477,240.05,240.03,4.86]
[1733474084151,2.7091,240.13,240.03,4.86]
[1733474084152,2.0,240.04,240.03,4.86]
[1733474084352,2.0,240.07,240.03,4.86]
[1733474084563,5.77432477,240.06,240.03,4.86]
[1733474085661,5.77432477,240.06,240.03,8.19]
[1733474087362,5.77432477,240.04,240.03,8.19]
[1733474088059,5.77432477,240.04,240.03,4.0837]
[1733474088457,2.0816,240.02,240.0,0.24994]
[1733474088658,7.77432477,240.01,240.0,0.24994]
[1733474090166,7.77432477,240.01,239.94,2.91]
[1733474090167,2.082,239.98,239.94,2.91]
[1733474090465,2.5286,240.0,239.98,7.688]
[1733474090967,2.0818,239.99,239.98,7.688]
[1733474091168,2.0818,239.99,239.98,7.1281]
[1733474091759,2.0818,239.99,239.98,5.61]
[1733474092258,2.0824,239.92,239.88,2.91]
[1733474092463,5.77432477,239.89,239.8,2.5126]
[1733474092662,5.77432477,239.89,239.81,5.77432477]
[1733474092966,2.0,239.9,239.8,2.5126]
[1733474093167,2.0,239.9,239.85,5.77432477]
[1733474093367,5.77432477,239.93,239.85,5.77432477]
[1733474093566,5.77432477,239.93,239.85,6.60432477]
[1733474093768,2.0,239.94,239.85,6.60432477]
[1733474093967,2.0,239.94,239.87,5.77432477]
[1733474094163,2.5286,240.0,239.87,5.77432477]
[1733474094365,5.77432477,239.97,239.87,11.84750205]
[1733474096666,5.77432477,239.95,239.87,11.84750205]
[1733474097267,5.77432477,239.97,239.87,11.84750205]
[1733474101072,2.0,239.99,239.87,11.84750205]
[1733474101271,5.77432477,239.97,239.87,11.84750205]
[1733474101470,2.0,240.03,239.93,5.77432477]
[1733474101673,5.77432477,240.03,239.94,2.5838]
[1733474101972,5.77432477,240.01,239.94,2.5838]
[1733474102271,5.77432477,240.02,239.94,2.5838]
[1733474102468,5.77432477,240.0,239.88,5.1295]
[1733474102773,2.0,240.05,239.93,5.77432477]
[1733474102970,5.77432477,240.03,239.93,9.92456575]
[1733474103172,5.77432477,240.01,239.93,4.15024098]
[1733474103374,5.77432477,240.01,239.91,5.77432477]
[1733474104373,5.77432477,240.01,239.93,5.77432477]
[1733474104581,5.77432477,240.01,239.94,4.26734287]
[1733474105671,5.77432477,240.01,239.89,2.0]
[1733474106179,5.77432477,240.01,239.92,5.77432477]
[1733474106776,2.0,240.03,239.92,5.77432477]
[1733474106974,5.77432477,240.01,239.92,5.77432477]
[1733474109082,5.77432477,240.01,239.92,8.68432477]
[1733474111889,7.77432477,240.03,239.94,5.77432477]
[1733474112085,7.77432477,240.03,239.95,4.20031527]
[1733474113381,2.0,240.03,239.94,7.77432477]
[1733474113588,7.77432477,240.03,239.94,7.77432477]
[1733474113891,7.77432477,240.03,239.94,11.92054019]
[1733474114085,7.77432477,240.03,239.94,6.14621542]
[1733474114283,7.77432477,240.03,239.94,11.92054019]
[1733474115890,2.6433,240.15,240.0,5.77432477]
[1733474116089,5.77432477,240.09,240.01,2.5701]
[1733474116480,2.0,240.14,240.04,5.77432477]
[1733474116481,5.77432477,240.14,240.04,5.77432477]
[1733474116680,5.77432477,240.14,240.05,4.07772112]
[1733474117384,2.692,240.21,240.08,5.77432477]
[1733474117587,43.34,240.38,240.14,5.77432477]
[1733474117787,5.77432477,240.23,240.1,2.0]
[1733474117984,5.77432477,240.19,240.11,5.1734]
[1733474118982,2.0,240.2,240.11,5.1734]
[1733474118983,5.77432477,240.17,240.11,5.1734]
[1733474120491,5.77432477,240.19,240.11,5.1734]
[1733474121184,5.77432477,240.19,240.12,0.83]
[1733474121694,5.77432477,240.19,240.13,3.33]
[1733474122295,5.77432477,240.17,240.13,3.33]
[1733474122797,5.77432477,240.17,240.13,8.29]
[1733474123285,5.77432477,240.15,240.13,8.29]
[1733474124586,7.77432477,240.15,240.13,8.29]
[1733474124986,9.85452477,240.15,240.13,8.29]
[1733474125594,7.77432477,240.15,240.13,8.29]
[1733474125892,2.5222,240.22,240.14,5.77432477]
[1733474126301,5.77432477,240.25,240.16,5.77432477]
[1733474126596,2.0,240.3,240.18,5.77432477]
[1733474126893,2.5585,240.35,240.18,5.77432477]
[1733474126894,5.77432477,240.28,240.18,5.77432477]
[1733474127102,5.77432477,240.28,240.2,5.77432477]
[1733474128000,2.0,240.29,240.18,4.26955144]
[1733474128198,2.0,240.29,240.17,10.98284683]
[1733474128800,2.0,240.29,240.17,15.12699813]
[1733474132807,2.02,240.32,240.17,15.12699813]
[1733474134707,2.02,240.32,240.2,8.98284683]
[1733474134899,2.02,240.32,240.21,2.6701]
[1733474135102,2.02,240.32,240.22,2.02]
[1733474136105,2.02,240.32,240.23,2.6135]
[1733474138910,2.02,240.32,240.21,2.6701]
[1733474138911,11.06164683,240.31,240.18,2.02]
[1733474139309,11.06164683,240.31,240.19,3.33]
[1733474139510,8.98284683,240.31,240.19,3.33]
[1733474139712,8.98284683,240.31,240.19,7.43034921]
[1733474140306,0.9603,240.45,240.2,8.98284683]
[1733474140506,2.0784,240.37,240.23,8.98284683]
[1733474140808,2.0784,240.37,240.24,2.6135]
[1733474141408,2.02,240.36,240.24,2.6135]
[1733474141611,2.02,240.36,240.25,2.7195]
[1733474141816,2.02,240.36,240.26,8.98284683]
[1733474142107,2.02,240.37,240.26,13.14177598]
[1733474142306,2.02,240.37,240.26,15.76047598]
[1733474143012,2.02,240.37,240.29,8.98284683]
[1733474143613,2.6836,240.44,240.32,8.98284683]
[1733474143804,2.6836,240.44,240.35,8.98284683]
[1733474144015,0.38219,240.45,240.35,11.00284683]
[1733474144314,0.38219,240.45,240.36,2.6908]
[1733474144612,0.38219,240.45,240.37,4.13789093]
[1733474144814,0.38219,240.45,240.38,0.83]
[1733474145406,0.38219,240.45,240.38,13.69284683]
[1733474145612,0.38219,240.45,240.38,16.18404683]
[1733474154023,11.05924683,240.59,240.41,8.98284683]
[1733474154222,2.02,240.58,240.46,0.38]
[1733474154422,2.02,240.58,240.47,2.02]
[1733474154615,2.02,240.58,240.47,6.10179583]
[1733474154821,2.02,240.58,240.47,8.78189583]
[1733474155519,2.02,240.58,240.47,2.6801]
[1733474155723,8.98284683,240.56,240.47,2.6801]
[1733474156020,8.98284683,240.56,240.48,3.32]
[1733474156623,2.0768,240.55,240.48,3.32]
[1733474157014,8.98284683,240.56,240.48,3.32]
[1733474158323,2.644,240.62,240.48,3.32]
[1733474158324,2.02,240.6,240.48,3.32]
[1733474161026,2.02,240.6,240.49,2.5928]
[1733474161623,2.02,240.61,240.49,2.5928]
[1733474162920,11.00284683,240.61,240.49,2.5928]
[1733474163127,2.0767,240.59,240.49,2.5928]
[1733474163428,11.00284683,240.61,240.49,2.5928]
[1733474164021,2.0766,240.59,240.49,2.5928]
[1733474164423,2.0769,240.57,240.49,2.5928]
[1733474164622,11.00284683,240.61,240.49,2.5928]
[1733474165025,8.98284683,240.58,240.48,3.32]
[1733474165221,8.98284683,240.55,240.48,3.32]
[1733474165426,2.0,240.54,240.48,3.32]
[1733474165630,2.0773,240.52,240.48,3.32]
[1733474165832,2.0,240.54,240.48,3.32]
[1733474166124,2.0774,240.51,240.48,3.32]
[1733474166326,2.0,240.54,240.48,3.32]
[1733474166934,8.98284683,240.52,240.48,3.32]
[1733474167431,2.0775,240.49,240.48,3.32]
[1733474167626,4.0775,240.49,240.48,3.32]
[1733474169336,4.0775,240.49,240.48,7.08]
[1733474169628,13.06034683,240.49,240.48,6.7078]
[1733474169930,10.98284683,240.49,240.38,0.83]
[1733474170130,8.98284683,240.44,240.38,0.83]
[1733474170325,2.0,240.43,240.38,0.83]
[1733474170529,2.0782,240.42,240.38,0.83]
[1733474170828,2.0,240.43,240.38,0.83]
[1733474171631,2.0,240.43,240.38,5.03]
[1733474172533,2.0783,240.4,240.38,5.03]
[1733474172927,2.0,240.43,240.38,5.03]
[1733474173133,2.0782,240.42,240.38,5.03]
[1733474173434,2.0,240.43,240.38,5.03]
[1733474173629,2.0783,240.4,240.38,5.03]
[1733474175137,2.0783,240.39,240.38,4.2]
[1733474175536,2.0,240.43,240.38,4.2]
[1733474176837,2.0,240.43,240.38,5.03]
[1733474177036,2.0783,240.4,240.38,5.03]
[1733474177228,2.0,240.43,240.38,5.03]
[1733474177635,2.0783,240.39,240.38,3.23369966]
[1733474177833,9.85386254,240.39,240.38,3.23369966]
[1733474178029,9.85386254,240.39,240.21,8.98284683]
[1733474178030,7.77556254,240.39,240.21,8.98284683]
[1733474178335,8.98284683,240.35,240.22,2.5422]
[1733474179330,8.98284683,240.35,240.23,2.4921]
[1733474179636,8.98284683,240.35,240.23,5.8221]
[1733474180027,2.0789,240.34,240.23,5.8221]
[1733474180238,2.0,240.33,240.23,5.8221]
[1733474181536,4.0789,240.33,240.23,5.8221]
[1733474181738,2.0,240.33,240.23,5.8221]
[1733474182136,2.0792,240.29,240.23,5.8221]
[1733474182336,2.0,240.28,240.23,5.8221]
[1733474185135,2.0794,240.27,240.23,3.33]
[1733474185333,2.0,240.28,240.23,3.33]
[1733474185538,8.98284683,240.26,240.23,3.33]
[1733474185734,2.0796,240.24,240.23,3.33]
[1733474186041,8.98284683,240.26,240.15,2.5287]
[1733474186235,2.0,240.25,240.15,2.5287]
[1733474186436,2.08,240.2,240.15,2.5287]
[1733474186636,2.0,240.19,240.15,2.5287]
[1733474187534,2.0,240.19,240.16,3.33]
[1733474188839,0.9551,240.35,240.16,3.33]
[1733474189039,8.98284683,240.29,240.16,3.33]
[1733474189344,2.0,240.28,240.16,3.33]
[1733474189641,2.0,240.27,240.16,3.33]
[1733474189841,2.0,240.26,240.17,4.1919294]
[1733474190037,2.0,240.26,240.16,3.33]
[1733474191738,2.0796,240.25,240.16,3.33]
[1733474193451,2.02,240.25,240.16,3.33]
[1733474193651,8.98284683,240.33,240.16,3.33]
[1733474193850,2.02,240.32,240.16,3.33]
[1733474194252,2.02,240.31,240.16,3.33]
[1733474194450,8.98284683,240.33,240.18,8.98284683]
[1733474194451,2.02,240.3,240.18,8.98284683]
[1733474194650,2.02,240.3,240.18,15.16746402]
[1733474195242,4.0991,240.3,240.18,15.16746402]
[1733474195441,2.02,240.3,240.18,15.16746402]
[1733474196347,8.98284683,240.36,240.21,8.98284683]
[1733474196553,2.02,240.37,240.24,8.98284683]
[1733474196855,2.02,240.37,240.25,7.2087]
[1733474197056,2.0785,240.38,240.25,11.36998716]
[1733474197244,2.02,240.37,240.25,11.36998716]
[1733474199352,8.98284683,240.41,240.27,8.98284683]
[1733474199555,2.02,240.39,240.27,8.98284683]
[1733474199759,8.98284683,240.44,240.27,8.98284683]
[1733474199760,2.02,240.41,240.27,8.98284683]
[1733474205547,11.00284683,240.41,240.25,9.34998716]
[1733474205748,11.00284683,240.41,240.26,2.02]
[1733474207658,2.0783,240.4,240.26,2.02]
[1733474208157,2.02,240.41,240.27,8.98284683]
[1733474212252,2.02,240.41,240.28,3.32]
[1733474214362,2.5508,240.53,240.3,8.98284683]
[1733474214570,8.98284683,240.49,240.33,8.98284683]
[1733474214756,8.98284683,240.49,240.34,7.7788]
[1733474214959,2.02,240.5,240.36,8.98284683]
[1733474215156,2.02,240.5,240.37,2.02]
[1733474215662,3.504,240.61,240.37,2.02]
[1733474215858,8.98284683,240.56,240.4,8.98284683]
[1733474217257,2.02,240.55,240.4,8.98284683]
[1733474217960,2.02,240.55,240.34,11.93519894]
[1733474217961,8.98284683,240.5,240.34,7.7788]
[1733474218160,11.00284683,240.5,240.35,2.02]
[1733474219153,2.02,240.53,240.38,8.98284683]
[1733474219364,8.98284683,240.52,240.38,8.98284683]
[1733474220162,8.98284683,240.52,240.38,2.02]
[1733474220464,8.98284683,240.48,240.38,2.02]
[1733474222370,11.00284683,240.48,240.38,2.02]
[1733474222763,11.00284683,240.48,240.34,7.7788]
[1733474223169,8.98284683,240.44,240.34,7.7788]
[1733474223368,2.04,240.43,240.34,7.7788]
[1733474223966,0.52075,240.72,240.44,0.62]
[1733474224160,18.19274487,240.71,240.54,8.98284683]
[1733474224364,11.54359683,240.72,240.55,5.2824]
[1733474224771,11.54359683,240.72,240.56,4.21140998]
[1733474225069,11.54359683,240.72,240.57,8.98284683]
[1733474225866,11.54359683,240.72,240.57,13.05769439]
[1733474226067,9.50359683,240.72,240.57,13.05769439]
[1733474226268,2.2,240.71,240.57,13.05769439]
[1733474226464,9.50359683,240.72,240.58,2.2]
[1733474226669,2.2,240.71,240.58,2.2]
[1733474228964,2.2,240.71,240.58,4.8291]
[1733474229369,8.98284683,240.68,240.58,2.6291]
[1733474230265,8.98284683,240.68,240.55,5.2824]
[1733474230570,8.98284683,240.65,240.55,5.2824]
[1733474230869,2.2,240.64,240.55,5.2824]
[1733474231070,2.2,240.64,240.56,3.32]
[1733474232372,2.0763,240.63,240.56,3.32]
[1733474232965,2.0764,240.62,240.56,3.32]
[1733474233676,2.2,240.64,240.56,3.32]
[1733474233677,2.0763,240.63,240.56,3.32]
[1733474233866,2.2,240.64,240.56,3.32]
[1733474234566,2.0764,240.62,240.56,3.32]
[1733474234767,8.98284683,240.61,240.56,3.32]
[1733474235078,2.0766,240.59,240.56,3.32]
[1733474235267,0.9459,240.71,240.56,1.2448]
[1733474235268,8.98284683,240.57,240.56,1.2448]
[1733474236173,11.05964683,240.57,240.56,1.2448]
[1733474236580,11.05964683,240.57,240.46,2.6913]
[1733474236581,2.077,240.55,240.46,2.6913]
[1733474236872,8.98284683,240.57,240.46,2.6913]
[1733474237077,8.98284683,240.53,240.39,2.6549]
[1733474237268,4.2773,240.52,240.39,2.6549]
[1733474237878,2.0773,240.51,240.39,2.6549]
[1733474238280,8.98284683,240.62,240.45,8.98284683]
[1733474238477,8.98284683,240.62,240.52,0.62]
[1733474239479,2.2,240.63,240.52,4.78732016]
[1733474239677,2.2,240.63,240.52,0.62]
[1733474239879,2.2,240.63,240.52,4.78690422]
[1733474240078,2.2468,240.71,240.52,0.62]
[1733474240079,14.33645343,240.67,240.52,0.62]
[1733474240277,14.33645343,240.67,240.52,4.77941727]
[1733474240578,14.33645343,240.67,240.52,0.62]
[1733474241577,2.0763,240.63,240.52,0.62]
[1733474241775,4.2763,240.63,240.52,0.62]
[1733474242377,4.2763,240.63,240.51,2.2]
[1733474243079,2.2,240.63,240.51,2.2]
[1733474243275,16.58325343,240.71,240.53,14.33645343]
[1733474243578,16.58325343,240.71,240.53,18.47699257]
[1733474243579,2.2,240.7,240.53,18.47699257]
[1733474243774,4.2757,240.7,240.53,18.47699257]
[1733474244371,2.2,240.7,240.53,18.47699257]
[1733474245574,2.2,240.7,240.57,14.33645343]
[1733474245775,14.33645343,240.78,240.58,7.4001]
[1733474245980,14.33645343,240.78,240.58,11.5167508]
[1733474245981,2.0753,240.75,240.58,11.5167508]
[1733474246179,2.2,240.76,240.58,11.5167508]
[1733474246375,14.33645343,240.78,240.58,11.5167508]
[1733474246576,2.2,240.76,240.58,11.5167508]
[1733474251083,2.2,240.76,240.59,0.13]
[1733474251676,14.33645343,240.74,240.59,0.13]
[1733474252477,2.0756,240.71,240.59,0.13]
[1733474252777,2.2,240.7,240.59,0.13]
[1733474254783,2.076,240.67,240.59,0.13]
[1733474254987,2.2,240.7,240.59,0.13]
[1733474255587,2.076,240.66,240.59,0.13]
[1733474256185,2.22,240.65,240.59,0.13]
[1733474257086,4.2961,240.65,240.59,0.13]
[1733474261386,2.22,240.65,240.59,0.13]
[1733474262186,2.22,240.68,240.59,0.13]
[1733474262392,2.22,240.69,240.59,0.13]
[1733474262992,11.03315721,240.72,240.59,4.24518429]
[1733474263188,2.22,240.71,240.59,0.13]
[1733474263393,2.22,240.7,240.59,0.13]
[1733474263593,2.22,240.72,240.59,2.7855]
[1733474263794,2.22,240.72,240.6,2.22]
[1733474264090,11.17765721,240.72,240.6,2.22]
[1733474264295,11.17765721,240.72,240.59,2.7855]
[1733474264499,2.0757,240.7,240.59,2.7855]
[1733474265291,2.0759,240.68,240.59,2.7855]
[1733474265493,2.22,240.67,240.59,2.7855]
[1733474266396,2.22,240.67,240.59,0.13]
[1733474266899,8.95765721,240.69,240.59,0.13]
[1733474267597,2.0758,240.68,240.59,0.13]
[1733474267796,8.95765721,240.69,240.59,0.13]
[1733474268700,2.0759,240.67,240.59,0.13]
[1733474268902,8.95765721,240.69,240.59,0.13]
[1733474269095,2.5469,240.71,240.59,0.13]
[1733474270605,8.95765721,240.69,240.59,0.13]
[1733474271008,8.95765721,240.66,240.59,0.13]
[1733474271200,2.22,240.65,240.52,18.53779919]
[1733474271410,2.22,240.65,240.52,9.58014198]
[1733474271704,2.0764,240.63,240.52,9.58014198]
[1733474272810,2.22,240.65,240.53,0.13]
[1733474272811,2.0762,240.64,240.53,0.13]
[1733474273510,2.22,240.65,240.53,0.13]
[1733474274103,8.95765721,240.63,240.53,0.13]
[1733474274719,2.0768,240.57,240.53,0.13]
[1733474274909,2.22,240.57,240.53,0.13]
[1733474275612,2.077,240.54,240.53,0.13]
[1733474276915,2.22,240.61,240.53,0.13]
[1733474277215,43.24,240.69,240.53,0.13]
[1733474277216,2.22,240.62,240.53,0.13]
[1733474277415,2.22,240.61,240.53,0.13]
[1733474279322,2.0768,240.58,240.53,0.13]
[1733474279919,11.17765721,240.61,240.53,0.13]
[1733474281723,2.077,240.55,240.53,0.13]
[1733474282023,4.297,240.55,240.53,0.13]
[1733474282522,2.077,240.54,240.53,0.13]
[1733474284520,2.077,240.54,240.42,2.5369]
[1733474284521,2.0773,240.52,240.42,2.5369]
[1733474284720,8.95765721,240.51,240.42,2.5369]
[1733474284921,2.18,240.5,240.42,2.5369]
[1733474285124,2.0775,240.49,240.42,2.5369]
[1733474286122,2.0775,240.49,240.42,2.6669]
[1733474286622,2.18,240.5,240.42,2.6669]
[1733474286822,2.18,240.5,240.42,0.13]
[1733474287218,2.0777,240.47,240.42,0.13]
[1733474287620,2.18,240.5,240.42,0.13]
[1733474287621,8.95765721,240.54,240.42,0.13]
[1733474287820,2.18,240.53,240.42,0.13]
[1733474288422,8.95765721,240.6,240.43,8.95765721]
[1733474288724,2.18,240.59,240.43,8.95765721]
[1733474288925,8.95765721,240.57,240.43,8.95765721]
[1733474289121,8.95765721,240.57,240.42,0.13]
[1733474289523,2.0771,240.53,240.42,0.13]
[1733474289728,4.2571,240.53,240.42,0.13]
[1733474290322,2.18,240.53,240.42,0.13]
[1733474290527,2.0772,240.52,240.42,0.13]
[1733474291128,2.18,240.53,240.42,0.13]
[1733474291329,2.0773,240.51,240.42,0.13]
[1733474292232,2.18,240.53,240.42,0.13]
[1733474292433,2.0772,240.52,240.42,0.13]
[1733474293036,2.0773,240.51,240.42,0.13]
[1733474293434,2.18,240.53,240.42,0.13]
[1733474293627,8.95765721,240.51,240.42,0.13]
[1733474295333,2.0777,240.48,240.42,0.13]
[1733474295534,2.18,240.47,240.42,0.13]
[1733474299327,6.688,240.66,240.42,0.13]
[1733474299531,8.95765721,240.55,240.42,0.13]
[1733474299835,2.18,240.54,240.42,0.13]
[1733474300631,2.0772,240.53,240.42,0.13]
[1733474302437,2.18,240.54,240.42,0.13]
[1733474302741,2.0772,240.52,240.42,0.13]
[1733474303934,2.0774,240.51,240.42,0.13]
[1733474304538,2.0775,240.5,240.42,0.13]
[1733474304837,8.95765721,240.48,240.42,0.13]
[1733474305642,2.0777,240.47,240.42,0.13]
[1733474305935,8.95765721,240.48,240.42,0.13]
[1733474306141,2.0777,240.47,240.42,0.13]
[1733474306336,8.95765721,240.48,240.42,0.13]
[1733474306737,8.95765721,240.45,240.31,5.1972]
[1733474306935,8.95765721,240.41,240.31,5.1972]
[1733474307239,2.0783,240.4,240.28,4.14239388]
[1733474307632,2.0783,240.4,240.26,7.3936]
[1733474308038,2.0783,240.4,240.26,11.53016948]
[1733474308236,2.18,240.39,240.26,11.53016948]
[1733474308946,4.2583,240.39,240.26,11.53016948]
[1733474309540,2.0785,240.37,240.26,5.2136]
[1733474310447,8.95765721,240.38,240.26,5.2136]
[1733474310646,2.0786,240.36,240.26,5.2136]
[1733474311047,8.95765721,240.38,240.26,5.2136]
[1733474311247,2.0787,240.35,240.26,5.2136]
[1733474311448,2.18,240.34,240.26,5.2136]
[1733474312050,2.0789,240.33,240.25,2.7005]
[1733474312250,8.95765721,240.32,240.25,2.7005]
[1733474312451,8.95765721,240.32,240.17,2.18]
[1733474312648,8.95765721,240.32,240.17,4.8242]
[1733474313746,11.03685721,240.29,240.17,4.8242]
[1733474314051,2.12,240.28,240.17,4.8242]
[1733474314454,11.50635721,240.35,240.19,8.95765721]
[1733474314755,2.12,240.34,240.19,8.95765721]
[1733474315353,2.0791,240.31,240.17,4.8242]
[1733474315548,8.95765721,240.32,240.17,4.8242]
[1733474316054,2.079,240.31,240.17,4.8242]
[1733474317247,2.0791,240.3,240.17,4.8242]
[1733474317446,2.12,240.29,240.17,4.8242]
[1733474320552,4.1992,240.29,240.17,4.8242]
[1733474321257,2.0794,240.27,240.17,2.6442]
[1733474322358,8.95765721,240.26,240.17,2.6442]
[1733474322858,11.03715721,240.26,240.17,2.6442]
[1733474324855,11.03715721,240.26,240.16,5.0647]
[1733474324856,2.0799,240.21,240.08,2.12]
[1733474325055,2.12,240.2,240.08,6.38682254]
[1733474325254,2.12,240.2,240.08,2.12]
[1733474325958,2.12,240.2,240.08,6.24887744]
[1733474326154,2.12,240.2,240.08,2.12]
[1733474326660,2.12,240.2,240.08,6.18683602]
[1733474326862,2.12,240.2,240.08,2.12]
[1733474327460,2.12,240.2,240.08,6.36838004]
[1733474327760,2.12,240.2,240.08,2.12]
[1733474328159,2.12,240.2,240.08,6.23971696]
[1733474330059,4.2,240.2,240.08,6.23971696]
[1733474330261,8.95765721,240.19,240.05,7.6818]
[1733474330465,8.95765721,240.19,240.05,11.94035075]
[1733474331664,2.0802,240.18,240.05,11.94035075]
[1733474332364,8.95765721,240.19,240.05,20.89800796]
[1733474332561,2.12,240.18,240.05,20.89800796]
[1733474337761,4.2002,240.18,240.05,20.89800796]
[1733474337964,4.2002,240.18,240.05,11.94035075]
[1733474339971,2.0803,240.17,240.05,11.94035075]
[1733474340266,2.12,240.18,240.05,11.94035075]
[1733474340465,4.2002,240.18,240.05,11.94035075]
[1733474340866,2.0802,240.18,240.05,11.94035075]
[1733474341268,2.12,240.17,240.05,11.94035075]
[1733474342269,8.95765721,240.19,240.05,7.6818]
[1733474342270,11.03775721,240.19,240.05,7.6818]
[1733474342574,11.03775721,240.19,240.05,11.8045268]
[1733474342767,2.12,240.18,240.05,11.8045268]
[1733474344266,8.95765721,240.16,240.05,11.8045268]
[1733474344777,8.95765721,240.16,240.05,7.6818]
[1733474346071,5.75624875,240.13,240.05,7.6818]
[1733474348474,7.79624875,240.13,240.05,7.6818]
[1733474351479,2.04,240.13,240.05,7.6818]
[1733474351681,5.75624875,240.12,240.05,7.6818]
[1733474352274,2.04,240.13,240.05,13.43804875]
[1733474352473,2.04,240.13,240.07,5.75624875]
[1733474353575,3.5347,240.23,240.07,5.75624875]
[1733474353782,2.04,240.22,240.09,5.75624875]
[1733474353983,5.75624875,240.18,240.09,5.75624875]
[1733474354282,2.04,240.21,240.09,5.75624875]
[1733474354483,2.04,240.22,240.11,5.75624875]
[1733474354779,5.75624875,240.21,240.11,9.98339976]
[1733474355085,5.75624875,240.19,240.11,4.22715101]
[1733474355286,5.75624875,240.19,240.1,5.75624875]
[1733474355489,5.75624875,240.19,240.11,4.20299824]
[1733474355875,5.75624875,240.17,240.08,2.04]
[1733474356080,5.75624875,240.17,240.08,7.79624875]
[1733474358276,5.75624875,240.15,240.07,2.04]
[1733474358681,5.75624875,240.15,240.07,7.79624875]
[1733474360083,2.04,240.17,240.07,7.79624875]
[1733474360281,5.75624875,240.15,240.07,7.79624875]
[1733474361986,5.75624875,240.15,240.07,2.04]
[1733474362187,5.75624875,240.15,240.07,7.79624875]
[1733474363278,2.04,240.17,240.11,5.75624875]